Cogmind - Beta 12 @@@ ROGUE MODE // 2023.04.10 @ 03:40:17 Player: jtmusky Result: Destroyed by G-47 Trooper with Particle Gun Performance ------------- Evolutions (0) 0 Regions Visited (1) 200 Robots Destroyed (15) 75 Value Destroyed (342) 342 Prototype IDs (0) 0 Alien Tech Used (0) 0 Bonus (0) 0 TOTAL SCORE: 617 Bonus ------- None Cogmind --------- Core Integrity 0/250 Matter 240/300 Energy 250/250 System Corruption 0% Temperature Cool (9) Movement Walking (120) Location -10/Materials Parts ------- > --- POWER (1) -------- Ion Engine > --- PROPULSION (2) --- Aluminum Leg Aluminum Leg > --- UTILITY (2) ------ Signal Interpreter Light Armor Plating > --- WEAPON (2) ------- Particle Cannon Particle Cannon > --- INVENTORY (5) ---- Medium Battery (150) Peak State ------------ > --- POWER ------------ Ion Engine > --- PROPULSION ------- Aluminum Leg Aluminum Leg > --- UTILITY ---------- Small Storage Unit High-capacity Matter Pod > --- WEAPON ----------- Shotgun Rocket Launcher > --- INVENTORY -------- Aluminum Leg [Rating: 9] Favorites ----------- Power Ion Engine Engine Ion Engine Propulsion Aluminum Leg Leg Aluminum Leg Utility Small Storage Unit Storage Small Storage Unit Processor Signal Interpreter Protection Light Armor Plating Weapon Assault Rifle Energy Gun EM Pulse Gun Energy Cannon Particle Cannon Ballistic Gun Assault Rifle Launcher Rocket Launcher Build | -11 -10 ------- Run | Jun Mat Slots Evolved . | . . Power . | . . Propulsion . | . . Utility . | . . Weapon . | . . Parts Attached 21 | 6 15 Power 2 | 1 1 Engine 2 | 1 1 Core . | . . Reactor . | . . Propulsion 4 | 2 2 Treads . | . . Leg 4 | 2 2 Wheel . | . . Hover . | . . Flight . | . . Utility 5 | 1 4 Device . | . . Storage 3 | 1 2 Processor 1 | . 1 Hackware . | . . Protection 1 | . 1 Artifact . | . . Weapon 10 | 2 8 Energy Gun 5 | 1 4 Energy Cannon 2 | . 2 Ballistic Gun 2 | 1 1 Ballistic Cannon . | . . Launcher 1 | . 1 Special Weapon . | . . Impact Weapon . | . . Slashing Weapon . | . . Piercing Weapon . | . . Special Melee Weapon . | . . Unidentified Prototypes . | . . Parts Lost 4 | . 4 Power 1 | . 1 Propulsion 2 | . 2 Utility . | . . Weapon 1 | . 1 Highest Loss Streak 4 | . 4 To Critical Strikes . | . . Average Slot Usage (%) 87 | . 87 Engine 12 | . 12 Leg 27 | . 27 Storage 10 | . 10 Processor 6 | . 6 Protection 3 | . 3 Energy Gun 4 | . 4 Energy Cannon 5 | . 5 Ballistic Gun 10 | . 10 Launcher 4 | . 4 Naked Turns . | . . Heaviest Build 21 | 14 21 Greatest Support 20 | 20 20 Greatest Overweight (x) 1 | . 1 Average Overweight (x) . | . . Largest Inventory Capacity 8 | 8 8 Average Capacity 7 | 7 7 Most Carried 2 | 2 1 Average Carried . | . . Final Capacity 8 | 8 5 Final Carried 1 | . 1 Class Distribution -------------------- 100% | Mutant Dominant Class ---------------- Mutant | -10/Materials Resources | -11 -10 ----------- Run | Jun Mat Matter Collected 487 | 204 283 Remotely . | . . Salvage Created 356 | . 356 Parts 30 | . 30 Haulers Intercepted . | . . Recyclers Shooed . | . . Parts Field Recycled . | . . Retrieved Matter . | . . Parts Self-Destructed . | . . Prevented . | . . Kills | -11 -10 ------- Run | Jun Mat Combat Hostiles Destroyed 13 | . 13 Guns 11 | . 11 AOE 2 | . 2 Classes Destroyed 4 | . 4 Builder 1 | . 1 Operator 1 | . 1 Swarmer 6 | . 6 Grunt 7 | . 7 Best Kill Streak 6 | . 6 Combat Bots Only 5 | . 5 Max Kills in Single Turn 1 | . 1 Gunslinging . | . . Exploded 1 | . 1 Melee . | . . Uniques/NPCs Destroyed . | . . Combat | -11 -10 -------- Run | Jun Mat Damage Taken 870 | . 870 Core 251 | . 251 Absorbed by Shields . | . . Core Remaining (%) 100 | 100 . Volleys Fired 48 | . 48 Largest 2 | . 2 Hottest 108 | . 108 Shots Fired 49 | . 49 Gun 43 | . 43 Cannon 1 | . 1 Launcher 5 | . 5 Special . | . . Kinetic 27 | . 27 Thermal 2 | . 2 Explosive 5 | . 5 Electromagnetic 15 | . 15 Robot Hit Streak 9 | . 9 Robot Miss Streak 5 | . 5 Penetration Max . | . . Secondary Targets . | . . Shots Hit Robots 28 | . 28 Core Hits 23 | . 23 Critical Kills . | . . Critical Parts Destroyed . | . . Critical Strikes . | . . Melee Attacks . | . . Impact . | . . Slashing . | . . Piercing . | . . Sneak Attacks . | . . Combat Hostiles . | . . Follow-up Attacks . | . . Damage Inflicted 691 | . 691 Guns 373 | . 373 Cannons 21 | . 21 Explosions 297 | . 297 Melee . | . . Ramming . | . . Kinetic 303 | . 303 Thermal 21 | . 21 Explosive 297 | . 297 Electromagnetic 70 | . 70 Impact . | . . Slashing . | . . Piercing . | . . Highest Corruption . | . . Average Corruption . | . . Corruption Purged . | . . Corruption Blocked . | . . Overload Shots . | . . Overflow Damage 2 | . 2 Projectiles . | . . Explosions 2 | . 2 Melee . | . . Knockbacks . | . . Impact . | . . Kinetic . | . . Secondary . | . . Self-Inflicted Damage . | . . Shots . | . . Rammed . | . . Targets Rammed . | . . Kicked . | . . Crushed . | . . Highest Temperature 57 | . 57 Average Temperature 15 | . 15 Received Heat Transfer 354 | . 354 Siege Activations . | . . Robots Corrupted . | . . Combat Hostiles . | . . Parts Fried . | . . Impact Corruptions . | . . Robots Melted . | . . Combat Hostiles . | . . Parts Melted . | . . Heat Transferred 37 | . 37 Parts Sabotaged . | . . Parts Stolen . | . . Parts Stripped . | . . Power Chain Reactions . | . . Missiles Intercepted . | . . Alert | -11 -10 ------- Run | Jun Mat Peak Influence 321 | . 321 Initial . | . . Average 54 | . 179 Maximum Alert Level 1 | . 1 Low Security (%) 89 | 100 64 Level 1 10 | . 35 Level 2 . | . . Level 3 . | . . Level 4 . | . . Level 5 . | . . High Security . | . . Max Security . | . . Squads Dispatched 2 | . 2 Investigation . | . . Extermination . | . . Reinforcement 2 | . 2 Assault . | . . Garrison . | . . Intercept . | . . Searches Triggered . | . . Construction Impeded . | . . Haulers Reinforced . | . . Active Scanning Responses . | . . Cargo Convoy Interrupts . | . . Stealth | -11 -10 --------- Run | Jun Mat Distress Signals 1 | . 1 Communications Jammed . | . . Distress Signals . | . . Times Spotted 22 | . 22 Peak Tracking Total 7 | . 7 Tactical Retreats . | . . Traps | -11 -10 ------- Run | Jun Mat Traps Triggered . | . . Indirectly . | . . Trap Hack Attempts . | . . Triggered . | . . Disarmed . | . . Reprogrammed . | . . Reused . | . . Traps Extracted . | . . Installed . | . . Triggered . | . . Machines | -11 -10 ---------- Run | Jun Mat Machines Disabled 1 | . 1 Max in Single Turn 1 | . 1 Machines Repaired . | . . Machines Sabotaged . | . . Overloaded Fab Kills . | . . Hacking | -11 -10 --------- Run | Jun Mat Machines Accessed . | . . Terminals . | . . Fabricators . | . . Repair Stations . | . . Recycling Units . | . . Scanalyzers . | . . Garrison Access . | . . Total Hacks . | . . Successful . | . . Failed . | . . Catastrophic . | . . Database Lockouts . | . . Manual . | . . Terminals . | . . Fabricators . | . . Repair Stations . | . . Recycling Units . | . . Scanalyzers . | . . Garrison Access . | . . Terminal Hacks . | . . Fabricator Hacks . | . . Repair Station Hacks . | . . Recycling Unit Hacks . | . . Scanalyzer . | . . Garrison Access Hacks . | . . Unauthorized Hacks . | . . Terminals . | . . Fabricators . | . . Repair Stations . | . . Recycling Units . | . . Scanalyzers . | . . Garrison Access . | . . Data Cores Recovered . | . . Used . | . . Hacking Detections . | . . Full Trace Events . | . . Feedback Events . | . . Feedback Blocked . | . . Robot Schematics Acquired . | . . Robots Built . | . . Authchips . | . . Time . | . . Total Robot Build Rating . | . . Part Schematics Acquired . | . . Parts Built . | . . Authchips . | . . Time . | . . Total Part Build Rating . | . . Parts Repaired . | . . Time . | . . Parts Recycled . | . . Recycled Matter . | . . Retrieved Matter . | . . Retrieved Components . | . . Parts Scanalyzed . | . . Part Schematics Acquired . | . . Parts Damaged . | . . Bothacking | -11 -10 ------------ Run | Jun Mat Used RIF Installer . | . . Robots Hacked . | . . Non-combat . | . . Combat . | . . Robot Hacks Applied . | . . Relay Couplers Released . | . . Fabnet Peak Effective % . | . . Robots Rewired . | . . Allies Hacked . | . . Hacks Repelled . | . . Allies | -11 -10 -------- Run | Jun Mat Total Allies . | . . Largest Group . | . . Highest-Rated Group . | . . Highest-Rated Ally . | . . Total Orders . | . . Ally Attacks . | . . Total Damage . | . . Kills . | . . Allies Corrupted . | . . Allies Melted . | . . Intel | -11 -10 ------- Run | Jun Mat Robot Analysis Total . | . . Derelict Logs Recovered . | . . Drone Launches . | . . Drone Recoveries . | . . Exploration | -11 -10 ------------- Run | Jun Mat Turns Passed 2138 | 1485 653 Spaces Moved 981 | 558 423 Core 16 | 16 . Treads . | . . Legs 965 | 542 423 Wheels . | . . Hover . | . . Flight . | . . Fastest Speed 50 | 50 120 Average Speed 120 | 117 123 Slowest Speed 190 | 120 190 Overloaded Moves . | . . Propulsion Burnouts . | . . Robots Hopped . | . . Cave-ins Triggered . | . . Exploration Rate (%) 59 | 59 59 Regions Visited 1 Branch Regions . Pre-discovered Areas . | . . Known Exits Taken . | . . Unknown Exits Taken 1 | 1 . Scrap Searched . | . . Spaces Dug . | . . Terrain Destroyed 19 | . 19 Melee . | . . Projectile . | . . AOE 19 | . 19 Terrain Rammed . | . . Walls Destroyed . | . . Machines Disabled . | . . Actions | -11 -10 --------- Run | Jun Mat Total 1889 | 1383 506 Wait 821 | 816 5 Move 980 | 557 423 Hop . | . . Pick Up 7 | 3 4 Fast Attach 13 | 4 9 Attach 7 | 2 5 Detach 4 | . 4 Swap 1 | . 1 Drop 8 | 1 7 Fire 48 | . 48 Melee . | . . Ram . | . . Kick . | . . Crush . | . . Escape Stasis . | . . Rewire . | . . Trap . | . . Miscellaneous . | . . Route ------- -11/Junkyard -10/Materials (discovered 3 exits: *Mat x2 / [*Min]) History --------- Turn | Location | Event 11 | -11/Junkyard | Discovered new exit (range 16) 1486 | -11/Junkyard | Entered Materials 1487 | -10/Materials | Build established: Mutant 1717 | -10/Materials | Discovered new exit (range 3) 1815 | -10/Materials | Discovered new exit (range 15) 1841 | -10/Materials | Core integrity fell below 50% 1890 | -10/Materials | Core integrity fell below 20% 1924 | -10/Materials | Lost 4 parts (1p2n1w) 1968 | -10/Materials | Discovered new exit (range 15) 2014 | -10/Materials | Identified exit to Materials 2139 | -10/Materials | Destroyed by G-47 Trooper with Particle Gun Last Messages --------------- 01927_ R-06 Scavenger inserts Hcp. Matter Pod into recycling unit. 01927_ Terminal unresponsive. 01930_ R-06 Scavenger inserts Aluminum Leg into recycling unit. 01931_ Acquired Sml. Laser. 01933_ R-06 Scavenger inserts Ion Engine into recycling unit. 01936_ R-06 Scavenger collects Sml. Laser. 01939_ R-06 Scavenger inserts Sml. Laser into recycling unit. 01942_ R-06 Scavenger collects Heat Sink. 01947_ Dropped Sml. Storage Unit. 01951_ Acquired Lgt. Armor Plating. 01957_ Connecting with Terminal... 01966_ R-06 Scavenger collects Sml. Storage Unit. 01968_ EXIT=FOUND 01996_ Dropped Shotgun. 02000_ Acquired Particle Cannon. 02011_ Dropped Sml. Laser. 02014_ EXIT=IDENTIFIED: MATERIALS 02070_ K-01 Serf cleans the Hadron Collector. 02107_ Acquired Med. Battery. 02123_ K-01 Serf cleans the Electrolysis Chamber. Map ----- +----------------------------------------------------+ | = ! [[ #??? | | = !| #??? | | #######+######## |= #??? | | ????? ????????# ## ######### #??? | | ??? ""?????????# " ############+#### | | ??# ???????????# """ " ##????# # # | | ??#????????????# """"" #?????# < # T # | | ???????????????# """"" ####### # # | | ???????????????# """ + # | | ???????????????# # """ # | | ????????????+ # """ # | | ?????????????### # """ # | | ???????????????######## ####### | | ??????????????????????############# #?????? | | ??????????????????????????????????# #?????? | | ??????????????????????????????????# #?????? | | ??????????????????????????????????# #?????? | | ??????????????????????????????????# #?????? | | ?????????????????????#######?????## ##????? | | ?????????????????????# ####### #????? | | ?????????????????????# #????? | | ?????????????????????# #????? | | ?????????????????????# #????? | | ?????????????????????# ####### #????? | | ?????????????????????## ##############????? | | ??????????????????????# @# #???????? | | ??????????????????????# # #???????? | | ???#